[Event "FIDE World Rapid Chess Championship 2021"]
[White "Sadzikowski, Daniel"]
[Black "Ponkratov, Pavel"]
[WhiteFideId "1132253"]
[BlackFideId "4157800"]
[WhiteElo "2414"]
[BlackElo "2614"]
[Result "0-1"]
[Round "02"]
[TimeControl "900+10"]
[Date "2021.12.26"]
[WhiteClock "0:00:19"]
[BlackClock "0:00:47"]

1. e4 {[%clk 0:15:00]}  e6 {[%clk 0:15:00]} 2. d4 {[%clk 0:15:00]}  d5 {[%clk 0:15:00]} 3. Nd2 {[%clk 0:15:00]}  c5 {[%clk 0:15:00]} 4. Ngf3 {[%clk 0:15:00]}  cxd4 {[%clk 0:15:00]} 5. exd5 {[%clk 0:15:00]}  Qxd5 {[%clk 0:15:00]} 6. Bc4 {[%clk 0:15:00]}  Qd7 {[%clk 0:15:00]} 7. O-O {[%clk 0:15:00]}  Nf6 {[%clk 0:15:00]} 8. Nb3 {[%clk 0:15:00]}  Nc6 {[%clk 0:15:00]} 9. Qe2 {[%clk 0:15:00]}  a6 {[%clk 0:15:00]} 10. a4 {[%clk 0:15:00]}  Qc7 {[%clk 0:15:00]} 11. Rd1 {[%clk 0:15:00]}  Bd7 {[%clk 0:15:00]} 12. Nbxd4 {[%clk 0:15:00]}  Rc8 {[%clk 0:15:00]} 13. Bb3 {[%clk 0:15:00]}  Be7 {[%clk 0:15:00]} 14. Bg5 {[%clk 0:15:00]}  O-O {[%clk 0:15:00]} 15. Bh4 {[%clk 0:15:00]}  Rfe8 {[%clk 0:15:00]} 16. Bg3 {[%clk 0:15:00]}  Qa5 {[%clk 0:15:00]} 17. c3 {[%clk 0:15:00]}  Nh5 {[%clk 0:15:00]} 18. Nxc6 {[%clk 0:15:00]}  Bxc6 {[%clk 0:15:00]} 19. Ne5 {[%clk 0:15:00]}  Nxg3 {[%clk 0:15:00]} 20. hxg3 {[%clk 0:15:00]}  Qb6 {[%clk 0:15:00]} 21. Bc2 {[%clk 0:15:00]}  g6 {[%clk 0:15:00]} 22. b4 {[%clk 0:15:00]}  Qc7 {[%clk 0:05:49]} 23. Nxc6 {[%clk 0:04:08]}  Qxc6 {[%clk 0:04:43]} 24. Be4 {[%clk 0:04:08]}  Qxc3 {[%clk 0:04:43]} 25. Bxb7 {[%clk 0:04:08]}  Rc7 {[%clk 0:04:43]} 26. Bxa6 {[%clk 0:04:08]}  Bxb4 {[%clk 0:04:43]} 27. Bb5 {[%clk 0:03:48]}  Rec8 {[%clk 0:03:43]} 28. Ra2 {[%clk 0:03:48]}  Ba5 {[%clk 0:03:43]} 29. Qf3 {[%clk 0:03:48]}  Qe5 {[%clk 0:03:43]} 30. Re2 {[%clk 0:03:48]}  Qc5 {[%clk 0:03:43]} 31. Re3 {[%clk 0:03:48]}  Qe7 {[%clk 0:03:43]} 32. Red3 {[%clk 0:03:48]}  Qg5 {[%clk 0:03:24]} 33. Rd7 {[%clk 0:02:35]}  Rxd7 {[%clk 0:03:24]} 34. Rxd7 {[%clk 0:02:35]}  Rc1+ {[%clk 0:03:24]} 35. Rd1 {[%clk 0:02:19]}  Kg7 {[%clk 0:01:41]} 36. Rxc1 {[%clk 0:02:19]}  Qxc1+ {[%clk 0:01:41]} 37. Kh2 {[%clk 0:02:19]}  Bb6 {[%clk 0:01:41]} 38. Qe2 {[%clk 0:02:19]}  Qc5 {[%clk 0:01:41]} 39. Kg1 {[%clk 0:02:19]}  h5 {[%clk 0:01:41]} 40. Kf1 {[%clk 0:02:19]}  f5 {[%clk 0:01:41]} 41. Qb2+ {[%clk 0:02:19]}  e5 {[%clk 0:01:41]} 42. Qe2 {[%clk 0:01:26]}  Kf6 {[%clk 0:02:00]} 43. Qd2 {[%clk 0:01:26]}  g5 {[%clk 0:02:00]} 44. Qe2 {[%clk 0:01:33]}  Qd4 {[%clk 0:02:00]} 45. Qe1 {[%clk 0:01:33]}  g4 {[%clk 0:02:00]} 46. Ke2 {[%clk 0:01:33]}  f4 {[%clk 0:01:02]} 47. gxf4 {[%clk 0:00:49]}  exf4 {[%clk 0:01:02]} 48. Kf1 {[%clk 0:00:49]}  g3 {[%clk 0:01:02]} 49. fxg3 {[%clk 0:00:49]}  Qg1+ {[%clk 0:01:02]} 50. Ke2 {[%clk 0:00:49]}  Qxg2+ {[%clk 0:01:02]} 51. Kd3 {[%clk 0:00:49]}  Qf3+ {[%clk 0:01:02]} 52. Kc2 {[%clk 0:00:49]}  fxg3 {[%clk 0:01:02]} 53. Qe8 {[%clk 0:00:19]}  Qf2+ {[%clk 0:00:47]} 54. Kd3 {[%clk 0:00:19]}  g2 {[%clk 0:00:47]} 55. Qf8+ {[%clk 0:00:19]}  Kg5 {[%clk 0:00:47]} 56. Qg7+ {[%clk 0:00:19]}  Kh4 {[%clk 0:00:47]} 57. Qe7+ {[%clk 0:00:19]}  Kh3 {[%clk 0:00:47]} 58. Qe6+ {[%clk 0:00:19]}  Kh2 {[%clk 0:00:47]} 59. Bc6 {[%clk 0:00:19]}  Qd4+ {[%clk 0:00:47]} 60. Ke2 {[%clk 0:00:19]}  g1=N+ {[%clk 0:00:47]} 61. Ke1 {[%clk 0:00:19]}  Ba5+ {[%clk 0:00:47]} 62. Kf1 {[%clk 0:00:19]}  Qd3+ {[%clk 0:00:47]} 63. Kf2 {[%clk 0:00:19]}  Nh3+ {[%clk 0:00:47]} 0-1


[Site "http://www.Chess.com"]

[Event "FIDE World Rapid Chess Championship 2021"]
[White "Chigaev, Maksim"]
[Black "Nevednichy, Vladislav"]
[WhiteFideId "4108116"]
[BlackFideId "1205730"]
[WhiteElo "2605"]
[BlackElo "2425"]
[Result "1-0"]
[Round "02"]
[TimeControl "900+10"]
[Date "2021.12.26"]
[WhiteClock "0:07:30"]
[BlackClock "0:00:56"]

1. c4 {[%clk 0:15:00]}  d6 {[%clk 0:15:00]} 2. Nc3 {[%clk 0:15:00]}  e5 {[%clk 0:15:00]} 3. g3 {[%clk 0:15:00]}  g6 {[%clk 0:15:00]} 4. Bg2 {[%clk 0:15:00]}  Bg7 {[%clk 0:15:00]} 5. e4 {[%clk 0:15:00]}  Nc6 {[%clk 0:15:00]} 6. Nge2 {[%clk 0:15:00]}  Nf6 {[%clk 0:15:00]} 7. d3 {[%clk 0:15:00]}  O-O {[%clk 0:15:00]} 8. O-O {[%clk 0:15:00]}  Be6 {[%clk 0:15:00]} 9. f4 {[%clk 0:15:00]}  Qd7 {[%clk 0:15:00]} 10. Nd5 {[%clk 0:15:00]}  Bg4 {[%clk 0:15:00]} 11. Be3 {[%clk 0:15:00]}  exf4 {[%clk 0:15:00]} 12. Ndxf4 {[%clk 0:15:00]}  Nh5 {[%clk 0:15:00]} 13. Qd2 {[%clk 0:15:00]}  Nxf4 {[%clk 0:15:00]} 14. Nxf4 {[%clk 0:15:00]}  Be6 {[%clk 0:15:00]} 15. b3 {[%clk 0:15:00]}  Nd4 {[%clk 0:15:00]} 16. b4 {[%clk 0:15:00]}  a5 {[%clk 0:15:00]} 17. b5 {[%clk 0:15:00]}  c5 {[%clk 0:15:00]} 18. bxc6 {[%clk 0:15:00]}  bxc6 {[%clk 0:15:00]} 19. Rab1 {[%clk 0:15:00]}  a4 {[%clk 0:15:00]} 20. Qf2 {[%clk 0:15:00]}  c5 {[%clk 0:15:00]} 21. e5 {[%clk 0:15:00]}  Rab8 {[%clk 0:15:00]} 22. Rxb8 {[%clk 0:15:00]}  Rxb8 {[%clk 0:15:00]} 23. Bxd4 {[%clk 0:15:00]}  cxd4 {[%clk 0:15:00]} 24. exd6 {[%clk 0:06:38]}  Qxd6 {[%clk 0:05:14]} 25. Nxe6 {[%clk 0:06:38]}  fxe6 {[%clk 0:05:14]} 26. Qf7+ {[%clk 0:06:38]}  Kh8 {[%clk 0:05:14]} 27. Qa7 {[%clk 0:06:38]}  Rf8 {[%clk 0:05:14]} 28. Qxa4 {[%clk 0:07:02]}  Qe5 {[%clk 0:03:15]} 29. Rxf8+ {[%clk 0:07:02]}  Bxf8 {[%clk 0:03:15]} 30. Be4 {[%clk 0:07:02]}  Qg5 {[%clk 0:03:15]} 31. Qc2 {[%clk 0:07:02]}  Bb4 {[%clk 0:03:15]} 32. Kg2 {[%clk 0:07:02]}  Kg7 {[%clk 0:03:15]} 33. Qf2 {[%clk 0:07:02]}  h5 {[%clk 0:03:15]} 34. Qxd4+ {[%clk 0:07:02]}  Qf6 {[%clk 0:03:15]} 35. Qxf6+ {[%clk 0:07:02]}  Kxf6 {[%clk 0:03:15]} 36. a4 {[%clk 0:06:45]}  g5 {[%clk 0:03:12]} 37. h3 {[%clk 0:06:45]}  Ke5 {[%clk 0:03:12]} 38. Kf3 {[%clk 0:06:45]}  Kd4 {[%clk 0:03:12]} 39. Bg6 {[%clk 0:06:45]}  h4 {[%clk 0:03:12]} 40. gxh4 {[%clk 0:06:45]}  gxh4 {[%clk 0:03:12]} 41. Kg4 {[%clk 0:06:45]}  Be1 {[%clk 0:03:12]} 42. a5 {[%clk 0:07:04]}  Kc5 {[%clk 0:01:51]} 43. d4+ {[%clk 0:07:04]}  Kc6 {[%clk 0:01:51]} 44. Bf7 {[%clk 0:07:04]}  Bxa5 {[%clk 0:00:35]} 45. Bxe6 {[%clk 0:06:08]}  Kd6 {[%clk 0:00:35]} 46. Kf5 {[%clk 0:06:08]}  Bc3 {[%clk 0:00:35]} 47. c5+ {[%clk 0:06:08]}  Ke7 {[%clk 0:00:35]} 48. Ke5 {[%clk 0:06:08]}  Bb2 {[%clk 0:00:35]} 49. Bg4 {[%clk 0:06:08]}  Bc3 {[%clk 0:00:35]} 50. Kd5 {[%clk 0:06:08]}  Bb2 {[%clk 0:00:35]} 51. Kc4 {[%clk 0:06:08]}  Bc1 {[%clk 0:00:35]} 52. d5 {[%clk 0:06:08]}  Bf4 {[%clk 0:00:35]} 53. Kb5 {[%clk 0:06:08]}  Be5 {[%clk 0:00:35]} 54. Kc6 {[%clk 0:06:08]}  Kd8 {[%clk 0:00:35]} 55. d6 {[%clk 0:06:08]}  Bb2 {[%clk 0:00:35]} 56. Kd5 {[%clk 0:06:08]}  Bc3 {[%clk 0:00:35]} 57. c6 {[%clk 0:07:30]}  Ba5 {[%clk 0:00:56]} 58. Ke4 {[%clk 0:07:30]} 1-0


[Site "http://www.Chess.com"]

[Event "FIDE World Rapid Chess Championship 2021"]
[White "Adly, Ahmed"]
[Black "Cuenca Jimenez, Jose Fernando"]
[WhiteFideId "10601619"]
[BlackFideId "2255570"]
[WhiteElo "2597"]
[BlackElo "2421"]
[Result "1-0"]
[Round "02"]
[TimeControl "900+10"]
[Date "2021.12.26"]
[WhiteClock "0:10:48"]
[BlackClock "0:00:28"]

1. Nf3 {[%clk 0:15:00]}  Nf6 {[%clk 0:15:00]} 2. g3 {[%clk 0:15:00]}  d5 {[%clk 0:15:00]} 3. Bg2 {[%clk 0:15:00]}  e6 {[%clk 0:15:00]} 4. O-O {[%clk 0:15:00]}  Be7 {[%clk 0:15:00]} 5. d4 {[%clk 0:15:00]}  O-O {[%clk 0:15:00]} 6. c4 {[%clk 0:15:00]}  dxc4 {[%clk 0:15:00]} 7. Qc2 {[%clk 0:15:00]}  a6 {[%clk 0:15:00]} 8. a4 {[%clk 0:15:00]}  Bd7 {[%clk 0:15:00]} 9. Qxc4 {[%clk 0:15:00]}  Bc6 {[%clk 0:15:00]} 10. Bg5 {[%clk 0:15:00]}  Bd5 {[%clk 0:15:00]} 11. Qc1 {[%clk 0:15:00]}  h6 {[%clk 0:15:00]} 12. Bxf6 {[%clk 0:15:00]}  Bxf6 {[%clk 0:15:00]} 13. Nc3 {[%clk 0:15:00]}  Bxf3 {[%clk 0:15:00]} 14. Bxf3 {[%clk 0:15:00]}  c6 {[%clk 0:15:00]} 15. e3 {[%clk 0:15:00]}  a5 {[%clk 0:15:00]} 16. Ne4 {[%clk 0:15:00]}  Na6 {[%clk 0:15:00]} 17. Qc3 {[%clk 0:15:00]}  Be7 {[%clk 0:15:00]} 18. h4 {[%clk 0:15:00]}  Nb4 {[%clk 0:15:00]} 19. Kg2 {[%clk 0:15:00]}  Qc7 {[%clk 0:15:00]} 20. Rh1 {[%clk 0:15:00]}  Rad8 {[%clk 0:15:00]} 21. Rad1 {[%clk 0:15:00]}  Kh8 {[%clk 0:15:00]} 22. Qc4 {[%clk 0:15:00]}  Nd5 {[%clk 0:15:00]} 23. Qc2 {[%clk 0:15:00]}  Kg8 {[%clk 0:15:00]} 24. Nd2 {[%clk 0:15:00]}  Bd6 {[%clk 0:15:00]} 25. Nc4 {[%clk 0:15:00]}  Bb4 {[%clk 0:15:00]} 26. e4 {[%clk 0:15:00]}  Nb6 {[%clk 0:15:00]} 27. Ne3 {[%clk 0:15:00]}  Rd7 {[%clk 0:15:00]} 28. Rd3 {[%clk 0:15:00]}  Rfd8 {[%clk 0:15:00]} 29. Rhd1 {[%clk 0:15:00]}  c5 {[%clk 0:15:00]} 30. d5 {[%clk 0:15:00]}  c4 {[%clk 0:02:29]} 31. Rd4 {[%clk 0:11:34]}  e5 {[%clk 0:02:29]} 32. Rxc4 {[%clk 0:11:34]}  Nxc4 {[%clk 0:02:29]} 33. Nxc4 {[%clk 0:11:34]}  Bc5 {[%clk 0:02:29]} 34. Bg4 {[%clk 0:11:34]}  Re7 {[%clk 0:02:29]} 35. Qd2 {[%clk 0:11:34]}  Bb4 {[%clk 0:01:19]} 36. Qe2 {[%clk 0:11:47]}  Qc5 {[%clk 0:01:19]} 37. d6 {[%clk 0:11:47]}  Ree8 {[%clk 0:01:19]} 38. Rd5 {[%clk 0:11:47]}  Qc6 {[%clk 0:01:19]} 39. d7 {[%clk 0:11:47]}  Rf8 {[%clk 0:01:19]} 40. Nxe5 {[%clk 0:11:47]}  Qxa4 {[%clk 0:01:19]} 41. Qc4 {[%clk 0:11:47]}  Qa1 {[%clk 0:01:19]} 42. Bh5 {[%clk 0:11:47]}  Qxb2 {[%clk 0:00:35]} 43. Bxf7+ {[%clk 0:11:37]}  Kh7 {[%clk 0:00:35]} 44. Bg6+ {[%clk 0:11:37]}  Kh8 {[%clk 0:00:35]} 45. Bf5 {[%clk 0:11:37]}  Rf6 {[%clk 0:00:35]} 46. Rb5 {[%clk 0:10:48]}  Qc3 {[%clk 0:00:28]} 47. Nf7+ {[%clk 0:10:48]}  Rxf7 {[%clk 0:00:28]} 48. Qxf7 {[%clk 0:10:48]}  Qf6 {[%clk 0:00:28]} 49. Qe8+ {[%clk 0:10:48]}  Qf8 {[%clk 0:00:28]} 50. Qg6 {[%clk 0:10:48]}  Qg8 {[%clk 0:00:28]} 51. Re5 {[%clk 0:10:48]} 1-0


[Site "http://www.Chess.com"]

[Event "FIDE World Rapid Chess Championship 2021"]
[White "Bluebaum, Matthias"]
[Black "Saraci, Nderim"]
[WhiteFideId "24651516"]
[BlackFideId "6351921"]
[WhiteElo "2575"]
[BlackElo "2414"]
[Result "1-0"]
[Round "02"]
[TimeControl "900+10"]
[Date "2021.12.26"]
[WhiteClock "0:01:31"]
[BlackClock "0:00:12"]

1. d4 {[%clk 0:15:00]}  Nf6 {[%clk 0:15:00]} 2. c4 {[%clk 0:15:00]}  e6 {[%clk 0:15:00]} 3. Nc3 {[%clk 0:15:00]}  d5 {[%clk 0:15:00]} 4. cxd5 {[%clk 0:15:00]}  exd5 {[%clk 0:15:00]} 5. Bg5 {[%clk 0:15:00]}  c6 {[%clk 0:15:00]} 6. e3 {[%clk 0:15:00]}  Be7 {[%clk 0:15:00]} 7. Bd3 {[%clk 0:15:00]}  O-O {[%clk 0:15:00]} 8. h3 {[%clk 0:15:00]}  Re8 {[%clk 0:15:00]} 9. Qc2 {[%clk 0:15:00]}  Nbd7 {[%clk 0:15:00]} 10. Nf3 {[%clk 0:15:00]}  Nf8 {[%clk 0:15:00]} 11. O-O {[%clk 0:15:00]}  Nh5 {[%clk 0:15:00]} 12. Bxe7 {[%clk 0:15:00]}  Qxe7 {[%clk 0:15:00]} 13. Rab1 {[%clk 0:15:00]}  a5 {[%clk 0:15:00]} 14. a3 {[%clk 0:15:00]}  Nf6 {[%clk 0:15:00]} 15. b4 {[%clk 0:15:00]}  Be6 {[%clk 0:15:00]} 16. Qb2 {[%clk 0:15:00]}  axb4 {[%clk 0:15:00]} 17. axb4 {[%clk 0:15:00]}  N6d7 {[%clk 0:15:00]} 18. b5 {[%clk 0:15:00]}  c5 {[%clk 0:15:00]} 19. dxc5 {[%clk 0:15:00]}  Nxc5 {[%clk 0:15:00]} 20. Be2 {[%clk 0:15:00]}  Nfd7 {[%clk 0:15:00]} 21. Ra1 {[%clk 0:15:00]}  Nb6 {[%clk 0:15:00]} 22. Qb4 {[%clk 0:15:00]}  h6 {[%clk 0:15:00]} 23. Nd4 {[%clk 0:15:00]}  Ne4 {[%clk 0:15:00]} 24. Qxe7 {[%clk 0:09:00]}  Rxe7 {[%clk 0:02:51]} 25. Rxa8+ {[%clk 0:09:00]}  Nxa8 {[%clk 0:02:51]} 26. Nxe4 {[%clk 0:09:00]}  dxe4 {[%clk 0:02:51]} 27. Nxe6 {[%clk 0:09:00]}  Rxe6 {[%clk 0:03:17]} 28. Rc1 {[%clk 0:07:30]}  Kf8 {[%clk 0:03:17]} 29. Bg4 {[%clk 0:07:30]}  Re8 {[%clk 0:03:17]} 30. Bd7 {[%clk 0:07:38]}  Re5 {[%clk 0:02:01]} 31. Rc8+ {[%clk 0:07:38]}  Ke7 {[%clk 0:02:01]} 32. Bg4 {[%clk 0:07:38]}  Nb6 {[%clk 0:02:01]} 33. Rc7+ {[%clk 0:07:38]}  Kf6 {[%clk 0:02:05]} 34. Rxb7 {[%clk 0:04:23]}  Rxb5 {[%clk 0:02:05]} 35. Bd7 {[%clk 0:04:23]}  Rb1+ {[%clk 0:02:05]} 36. Kh2 {[%clk 0:04:23]}  Rb2 {[%clk 0:02:05]} 37. Be8 {[%clk 0:04:23]}  Nc4 {[%clk 0:02:05]} 38. Rxf7+ {[%clk 0:04:23]}  Ke6 {[%clk 0:02:05]} 39. Rf4 {[%clk 0:04:38]}  Nd6 {[%clk 0:00:29]} 40. Bg6 {[%clk 0:04:38]}  Ke5 {[%clk 0:00:29]} 41. Rf8 {[%clk 0:04:38]}  Ke6 {[%clk 0:00:29]} 42. g4 {[%clk 0:03:03]}  Rb5 {[%clk 0:00:13]} 43. h4 {[%clk 0:03:03]}  Ke7 {[%clk 0:00:13]} 44. Ra8 {[%clk 0:03:03]}  Rb2 {[%clk 0:00:13]} 45. Kg3 {[%clk 0:03:03]}  Kf6 {[%clk 0:00:13]} 46. Ra6 {[%clk 0:03:03]}  Ke5 {[%clk 0:00:13]} 47. Bh7 {[%clk 0:03:03]}  Rb7 {[%clk 0:00:13]} 48. Bg6 {[%clk 0:03:03]}  Rb2 {[%clk 0:00:13]} 49. h5 {[%clk 0:03:03]}  Rb3 {[%clk 0:00:13]} 50. Ra7 {[%clk 0:02:17]}  Rb7 {[%clk 0:00:48]} 51. Ra8 {[%clk 0:02:17]}  Rb1 {[%clk 0:00:48]} 52. f4+ {[%clk 0:02:17]}  Kd5 {[%clk 0:00:48]} 53. Ra5+ {[%clk 0:02:17]}  Kc4 {[%clk 0:00:48]} 54. Ra4+ {[%clk 0:02:17]}  Rb4 {[%clk 0:00:48]} 55. Rxb4+ {[%clk 0:01:31]}  Kxb4 {[%clk 0:00:12]} 56. g5 {[%clk 0:01:31]}  Kc4 {[%clk 0:00:12]} 57. f5 {[%clk 0:01:31]}  hxg5 {[%clk 0:00:12]} 58. f6 {[%clk 0:01:31]} 1-0


[Site "http://www.Chess.com"]

[Event "FIDE World Rapid Chess Championship 2021"]
[White "Alonso Rosell, Alvar"]
[Black "Dragnev, Valentin"]
[WhiteFideId "2270544"]
[BlackFideId "1634852"]
[WhiteElo "2571"]
[BlackElo "2409"]
[Result "1-0"]
[Round "02"]
[TimeControl "900+10"]
[Date "2021.12.26"]
[WhiteClock "0:05:45"]
[BlackClock "0:06:33"]

1. d4 {[%clk 0:15:00]}  Nf6 {[%clk 0:15:00]} 2. Bf4 {[%clk 0:15:00]}  d5 {[%clk 0:15:00]} 3. e3 {[%clk 0:15:00]}  e6 {[%clk 0:15:00]} 4. Nf3 {[%clk 0:15:00]}  Bd6 {[%clk 0:15:00]} 5. Bxd6 {[%clk 0:15:00]}  Qxd6 {[%clk 0:15:00]} 6. c4 {[%clk 0:15:00]}  c5 {[%clk 0:15:00]} 7. Nc3 {[%clk 0:15:00]}  cxd4 {[%clk 0:15:00]} 8. Qxd4 {[%clk 0:15:00]}  Nc6 {[%clk 0:15:00]} 9. Qd2 {[%clk 0:15:00]}  O-O {[%clk 0:15:00]} 10. cxd5 {[%clk 0:15:00]}  exd5 {[%clk 0:15:00]} 11. Be2 {[%clk 0:15:00]}  Rd8 {[%clk 0:15:00]} 12. Rd1 {[%clk 0:15:00]}  Bg4 {[%clk 0:15:00]} 13. O-O {[%clk 0:15:00]}  Rac8 {[%clk 0:15:00]} 14. Nd4 {[%clk 0:15:00]}  Nxd4 {[%clk 0:15:00]} 15. Qxd4 {[%clk 0:15:00]}  Rxc3 {[%clk 0:15:00]} 16. Bxg4 {[%clk 0:15:00]}  Nxg4 {[%clk 0:15:00]} 17. Qxg4 {[%clk 0:15:00]}  Rc2 {[%clk 0:15:00]} 18. Qd4 {[%clk 0:15:00]}  Qb6 {[%clk 0:15:00]} 19. Qa4 {[%clk 0:15:00]}  Rc4 {[%clk 0:15:10]} 20. Qa3 {[%clk 0:12:58]}  d4 {[%clk 0:15:10]} 21. Qe7 {[%clk 0:13:15]}  g6 {[%clk 0:12:23]} 22. b3 {[%clk 0:10:24]}  Rc2 {[%clk 0:12:23]} 23. exd4 {[%clk 0:10:24]}  Rxa2 {[%clk 0:10:02]} 24. d5 {[%clk 0:10:27]}  Qd6 {[%clk 0:10:02]} 25. Qxb7 {[%clk 0:10:27]}  Rb8 {[%clk 0:10:02]} 26. Qc6 {[%clk 0:10:27]}  Rb6 {[%clk 0:10:02]} 27. Qe8+ {[%clk 0:10:27]}  Kg7 {[%clk 0:08:45]} 28. Rd3 {[%clk 0:10:03]}  Rc2 {[%clk 0:08:45]} 29. Re1 {[%clk 0:10:03]}  Rb7 {[%clk 0:08:45]} 30. h4 {[%clk 0:10:03]}  h5 {[%clk 0:08:45]} 31. g3 {[%clk 0:10:03]}  Rbc7 {[%clk 0:08:45]} 32. Qe3 {[%clk 0:10:03]}  Rd7 {[%clk 0:08:45]} 33. Qe4 {[%clk 0:10:03]}  Rc5 {[%clk 0:08:45]} 34. Red1 {[%clk 0:10:03]}  Rb5 {[%clk 0:08:24]} 35. Qd4+ {[%clk 0:09:15]}  Qf6 {[%clk 0:08:24]} 36. Qc4 {[%clk 0:09:15]}  Rb6 {[%clk 0:08:24]} 37. Rd4 {[%clk 0:09:15]}  Qe5 {[%clk 0:08:24]} 38. Re4 {[%clk 0:09:15]}  Qb2 {[%clk 0:08:24]} 39. Re3 {[%clk 0:09:15]}  Qf6 {[%clk 0:08:24]} 40. Rdd3 {[%clk 0:09:15]}  Rbd6 {[%clk 0:08:24]} 41. Re4 {[%clk 0:09:15]}  Qd8 {[%clk 0:08:24]} 42. Re5 {[%clk 0:09:15]}  Qf6 {[%clk 0:08:24]} 43. Qe4 {[%clk 0:09:15]}  Qd8 {[%clk 0:08:24]} 44. Kg2 {[%clk 0:08:06]}  Qa5 {[%clk 0:08:20]} 45. Rg5 {[%clk 0:08:06]}  Qa1 {[%clk 0:08:20]} 46. g4 {[%clk 0:08:06]}  hxg4 {[%clk 0:08:20]} 47. h5 {[%clk 0:08:06]}  Rf6 {[%clk 0:08:20]} 48. Qxg4 {[%clk 0:08:06]}  Rdd6 {[%clk 0:08:20]} 49. Rg3 {[%clk 0:08:06]}  Qb2 {[%clk 0:08:20]} 50. Rf3 {[%clk 0:08:06]}  Rb6 {[%clk 0:08:20]} 51. hxg6 {[%clk 0:07:46]}  Rxg6 {[%clk 0:07:20]} 52. Rg3 {[%clk 0:07:46]}  Rf6 {[%clk 0:07:20]} 53. Rxg6+ {[%clk 0:07:46]}  Rxg6 {[%clk 0:07:20]} 54. Qf3 {[%clk 0:07:46]}  Qd4 {[%clk 0:07:20]} 55. Qf5 {[%clk 0:07:46]}  Rxg3+ {[%clk 0:07:20]} 56. Kxg3 {[%clk 0:07:46]}  Qc3+ {[%clk 0:07:20]} 57. Qf3 {[%clk 0:07:46]}  Qe5+ {[%clk 0:07:20]} 58. Kg2 {[%clk 0:07:46]}  Kf8 {[%clk 0:07:20]} 59. Qd3 {[%clk 0:07:46]}  Ke7 {[%clk 0:07:20]} 60. Qc4 {[%clk 0:07:46]}  Kd6 {[%clk 0:07:20]} 61. Qc6+ {[%clk 0:07:46]}  Ke7 {[%clk 0:07:20]} 62. Qb7+ {[%clk 0:07:46]}  Kf6 {[%clk 0:06:58]} 63. Qa6+ {[%clk 0:07:08]}  Kg7 {[%clk 0:06:58]} 64. Qc4 {[%clk 0:07:08]}  Kf8 {[%clk 0:06:58]} 65. Kf1 {[%clk 0:07:08]}  Qf5 {[%clk 0:06:58]} 66. Qc5+ {[%clk 0:07:08]}  Kg8 {[%clk 0:06:58]} 67. b4 {[%clk 0:07:08]}  Qd3+ {[%clk 0:06:58]} 68. Ke1 {[%clk 0:07:08]}  Qe4+ {[%clk 0:06:58]} 69. Kd2 {[%clk 0:07:08]}  Qf4+ {[%clk 0:06:58]} 70. Kd3 {[%clk 0:07:08]}  Qf3+ {[%clk 0:06:58]} 71. Kc4 {[%clk 0:07:08]}  Qe2+ {[%clk 0:06:58]} 72. Kc3 {[%clk 0:07:08]}  Qf3+ {[%clk 0:07:02]} 73. Kb2 {[%clk 0:06:53]}  Qe2+ {[%clk 0:07:02]} 74. Ka3 {[%clk 0:06:53]}  Qa6+ {[%clk 0:07:02]} 75. Kb3 {[%clk 0:06:53]}  Qd3+ {[%clk 0:07:02]} 76. Ka4 {[%clk 0:06:53]}  Qa6+ {[%clk 0:07:02]} 77. Qa5 {[%clk 0:06:53]}  Qc4 {[%clk 0:07:02]} 78. Qc5 {[%clk 0:06:53]}  Qa6+ {[%clk 0:07:02]} 79. Qa5 {[%clk 0:06:53]}  Qc4 {[%clk 0:07:02]} 80. d6 {[%clk 0:06:53]}  Qc6+ {[%clk 0:06:55]} 81. Ka3 {[%clk 0:05:39]}  Qc3+ {[%clk 0:06:55]} 82. Ka4 {[%clk 0:05:39]}  Qc6+ {[%clk 0:06:55]} 83. Kb3 {[%clk 0:05:39]}  Qf3+ {[%clk 0:06:55]} 84. Kc4 {[%clk 0:05:39]}  Qc6+ {[%clk 0:06:55]} 85. Qc5 {[%clk 0:05:39]}  Qa6+ {[%clk 0:06:55]} 86. Kd5 {[%clk 0:05:39]}  Qb7+ {[%clk 0:06:55]} 87. Qc6 {[%clk 0:05:39]}  Qxb4 {[%clk 0:06:55]} 88. d7 {[%clk 0:05:39]}  Qd2+ {[%clk 0:06:55]} 89. Ke5 {[%clk 0:05:39]}  Qa5+ {[%clk 0:06:22]} 90. Kd6 {[%clk 0:05:54]}  Kg7 {[%clk 0:06:22]} 91. Qc5 {[%clk 0:05:54]}  Qd8 {[%clk 0:06:22]} 92. f4 {[%clk 0:05:54]}  Qf6+ {[%clk 0:06:22]} 93. Kc7 {[%clk 0:05:54]}  Qxf4+ {[%clk 0:06:22]} 94. Qd6 {[%clk 0:05:54]}  Qc4+ {[%clk 0:06:22]} 95. Qc6 {[%clk 0:05:54]}  Qf4+ {[%clk 0:06:22]} 96. Kc8 {[%clk 0:05:54]}  Qf5 {[%clk 0:06:22]} 97. Kb7 {[%clk 0:05:54]}  Qa5 {[%clk 0:06:22]} 98. Qd6 {[%clk 0:05:45]}  Qd8 {[%clk 0:06:33]} 99. Qc7 {[%clk 0:05:45]}  Qg5 {[%clk 0:06:33]} 100. d8=Q {[%clk 0:05:45]}  Qb5+ {[%clk 0:06:33]} 101. Ka8 {[%clk 0:05:45]} 1-0


[Site "http://www.Chess.com"]

[Event "FIDE World Rapid Chess Championship 2021"]
[White "Holm, Kristian Stuvik"]
[Black "Kozak, Adam"]
[WhiteFideId "1508083"]
[BlackFideId "753246"]
[WhiteElo "2409"]
[BlackElo "2552"]
[Result "0-1"]
[Round "02"]
[TimeControl "900+10"]
[Date "2021.12.26"]
[WhiteClock "0:00:15"]
[BlackClock "0:00:15"]

1. d4 {[%clk 0:15:00]}  d5 {[%clk 0:15:00]} 2. c4 {[%clk 0:15:00]}  e6 {[%clk 0:15:00]} 3. Nc3 {[%clk 0:15:00]}  Bb4 {[%clk 0:15:00]} 4. e3 {[%clk 0:15:00]}  Nf6 {[%clk 0:15:00]} 5. Qa4+ {[%clk 0:15:00]}  Nc6 {[%clk 0:15:00]} 6. Nf3 {[%clk 0:15:00]}  O-O {[%clk 0:15:00]} 7. Bd2 {[%clk 0:15:00]}  Bd6 {[%clk 0:15:00]} 8. Qc2 {[%clk 0:15:00]}  h6 {[%clk 0:15:00]} 9. a3 {[%clk 0:15:00]}  dxc4 {[%clk 0:15:00]} 10. Bxc4 {[%clk 0:15:00]}  e5 {[%clk 0:15:00]} 11. dxe5 {[%clk 0:15:00]}  Nxe5 {[%clk 0:15:00]} 12. Nxe5 {[%clk 0:15:00]}  Bxe5 {[%clk 0:15:00]} 13. f4 {[%clk 0:15:00]}  Bxc3 {[%clk 0:15:00]} 14. Bxc3 {[%clk 0:15:00]}  Qe7 {[%clk 0:15:00]} 15. O-O {[%clk 0:15:00]}  Qxe3+ {[%clk 0:15:00]} 16. Kh1 {[%clk 0:15:00]}  Qe4 {[%clk 0:15:00]} 17. Bd3 {[%clk 0:15:00]}  Qc6 {[%clk 0:15:00]} 18. Qf2 {[%clk 0:15:00]}  Rd8 {[%clk 0:15:00]} 19. Qg3 {[%clk 0:15:00]}  Nh5 {[%clk 0:05:58]} 20. Qe3 {[%clk 0:04:49]}  Bg4 {[%clk 0:05:58]} 21. Be4 {[%clk 0:04:47]}  Qb5 {[%clk 0:03:40]} 22. a4 {[%clk 0:04:17]}  Qe2 {[%clk 0:02:27]} 23. Rae1 {[%clk 0:04:17]}  Qxe3 {[%clk 0:02:27]} 24. Rxe3 {[%clk 0:04:17]}  c6 {[%clk 0:02:27]} 25. f5 {[%clk 0:01:32]}  Bd1 {[%clk 0:02:17]} 26. a5 {[%clk 0:01:32]}  a6 {[%clk 0:02:17]} 27. Rfe1 {[%clk 0:01:32]}  Rd7 {[%clk 0:02:17]} 28. f6 {[%clk 0:01:32]}  Nxf6 {[%clk 0:02:17]} 29. Bf5 {[%clk 0:00:50]}  Rd5 {[%clk 0:01:02]} 30. Bb1 {[%clk 0:00:50]}  Rad8 {[%clk 0:01:02]} 31. Ba2 {[%clk 0:00:50]}  Rb5 {[%clk 0:01:02]} 32. Bc4 {[%clk 0:00:50]}  Rc5 {[%clk 0:01:02]} 33. Ba2 {[%clk 0:00:50]}  Bh5 {[%clk 0:00:15]} 34. Re7 {[%clk 0:00:15]}  Nd5 {[%clk 0:00:15]} 35. Bxd5 {[%clk 0:00:15]}  cxd5 {[%clk 0:00:15]} 36. Rxb7 {[%clk 0:00:15]}  d4 {[%clk 0:00:15]} 37. Bb4 {[%clk 0:00:15]}  Rc2 {[%clk 0:00:15]} 38. Be7 {[%clk 0:00:15]}  Rd5 {[%clk 0:00:15]} 39. Rb8+ {[%clk 0:00:15]}  Kh7 {[%clk 0:00:15]} 0-1


[Site "http://www.Chess.com"]